bitfinex-derivatives/quotes_SOLF0:USTF0_20250614
["timestamp","ask_amount","ask_price","bid_price","bid_amount"]
[1749862322650,10.24779123,148.5,148.42,34.76]
[1749862322853,12.57353196,148.49,148.45,0.05068502]
[1749862323049,16.53999132,148.48,148.45,0.05068502]
[1749862323356,3.9664628,148.46,148.45,0.05068502]
[1749862323656,19.30684414,148.46,148.45,0.05068502]
[1749862323857,8.03646596,148.46,148.45,0.05068502]
[1749862324060,9.99628539,148.46,148.45,0.05068502]
[1749862324245,9.99612479,148.46,148.45,0.05068502]
[1749862324646,4.53753912,148.46,148.45,0.05068502]
[1749862324853,6.7325,148.47,148.45,0.05068502]
[1749862325050,4.5375089,148.46,148.45,0.05068502]
[1749862325251,7.12638973,148.46,148.45,0.05068502]
[1749862325446,12.59836896,148.46,148.45,0.05068502]
[1749862325648,8.06058805,148.46,148.45,0.05068502]
[1749862325850,12.59836614,148.46,148.45,0.05068502]
[1749862326351,5.47190466,148.46,148.45,0.05068502]
[1749862326551,5.47190466,148.47,148.45,0.05068502]
[1749862326746,10.6983628,148.48,148.45,0.05068502]
[1749862326942,5.46657431,148.47,148.45,0.05068502]
[1749862327147,3.9664628,148.46,148.45,0.05068502]
[1749862327453,9.43303711,148.46,148.45,0.05068502]
[1749862327954,16.16583711,148.46,148.45,0.05068502]
[1749862328253,12.19937431,148.46,148.45,0.05068502]
[1749862328639,6.7328,148.46,148.45,0.05068502]
[1749862329654,34.76,148.49,148.45,0.05068502]
[1749862329846,9.41267766,148.48,148.45,0.05068502]
[1749862330047,5.44621486,148.47,148.45,0.05068502]
[1749862330252,12.17861486,148.47,148.45,0.05068502]
[1749862330453,6.7324,148.47,148.45,0.05068502]
[1749862330955,10.6984628,148.48,148.45,0.05068502]
[1749862332843,34.76,148.49,148.46,6.7327]
[1749862333249,3.9664628,148.5,148.45,0.05068502]
[1749862333556,5.43973406,148.49,148.45,0.05068502]
[1749862333858,41.0103628,148.52,148.45,0.05068502]
[1749862334155,3.9664628,148.52,148.46,34.74]
[1749862334355,3.9664628,148.54,148.48,0.05172762]
[1749862334553,5.43721191,148.53,148.48,0.05172762]
[1749862335054,3.9664628,148.52,148.48,0.05172762]
[1749862335249,3.9664628,148.53,148.48,0.05172762]
[1749862335651,6.7306,148.51,148.48,0.05172762]
[1749862335954,3.9664628,148.51,148.48,0.05172762]
[1749862336150,6.7314,148.49,148.48,0.05172762]
[1749862336457,10.6978628,148.49,148.48,0.05172762]
[1749862336758,3.9664628,148.49,148.44,34.74]
[1749862337146,6.7323,148.47,148.44,34.74]
[1749862337351,6.7323,148.47,148.43,6.7337]
[1749862337547,0.04748465,148.46,148.44,0.04701758]
[1749862338155,3.9664628,148.45,148.44,0.04701758]
[1749862338450,10.6996628,148.45,148.44,0.04701758]
[1749862339253,6.7345,148.43,148.38,34.74]
[1749862339460,3.9664628,148.43,148.38,41.4762]
[1749862340155,0.04384606,148.42,148.39,0.04661209]
[1749862340949,6.77864606,148.42,148.39,0.04661209]
[1749862341355,0.04384606,148.42,148.39,0.04661209]
[1749862341555,6.7353,148.41,148.39,0.04661209]
[1749862341750,0.04384606,148.42,148.39,0.04661209]
[1749862342154,0.04384606,148.42,148.39,34.78661209]
[1749862342454,0.04384606,148.42,148.41,6.735]
[1749862344071,0.04384606,148.42,148.4,9.0413]
[1749862344757,0.04384606,148.42,148.39,41.52241209]
[1749862345059,0.04384606,148.42,148.39,34.78661209]
[1749862345259,6.77844606,148.42,148.39,34.78661209]
[1749862345461,0.04384606,148.42,148.39,34.78661209]
[1749862346666,0.04384606,148.42,148.41,6.735]
[1749862348262,0.04384606,148.42,148.39,34.78661209]
[1749862348961,0.04384606,148.42,148.41,6.735]
[1749862354765,6.7324,148.47,148.44,6.7334]
[1749862355673,6.78184727,148.47,148.44,6.78503826]
[1749862356060,0.04944727,148.47,148.44,0.05163826]
[1749862356469,6.78184727,148.47,148.44,0.05163826]
[1749862356765,0.04944727,148.47,148.44,0.05163826]
[1749862356958,5.5035053,148.47,148.44,0.05163826]
[1749862357166,6.7331,148.46,148.44,0.05163826]
[1749862357367,0.04944727,148.47,148.44,0.05163826]
[1749862358967,0.04944727,148.47,148.45,6.7329]
[1749862359472,0.04944727,148.47,148.44,0.05163826]
[1749862359665,0.04944727,148.47,148.44,6.78513826]
[1749862360267,0.04944727,148.47,148.44,0.05163826]
[1749862360873,0.04944727,148.47,148.45,6.7332]
[1749862361474,5.51595369,148.47,148.45,6.7332]
[1749862361773,0.04944727,148.47,148.45,6.7332]
[1749862362272,0.04944727,148.47,148.46,6.7328]
[1749862362773,44.95764281,148.53,148.45,3.9664628]
[1749862362969,8.0566619,148.52,148.46,6.7326]
[1749862363163,12.0231247,148.51,148.46,6.7326]
[1749862363368,5.4670811,148.5,148.46,6.7326]
[1749862363568,5.4670811,148.49,148.45,6.733]
[1749862363769,3.9664628,148.51,148.46,0.04734863]
[1749862363965,3.9664628,148.49,148.46,0.04734863]
[1749862364170,12.200822,148.48,148.46,0.04734863]
[1749862364372,5.468622,148.47,148.46,0.04734863]
[1749862364875,12.200922,148.47,148.46,0.04734863]
[1749862365177,16.1673848,148.47,148.46,0.04734863]
[1749862365477,16.1673848,148.47,148.4,7.1202]
[1749862365478,6.7334,148.45,148.4,41.8402]
[1749862365675,5.4713884,148.44,148.4,41.8402]
[1749862365868,5.4713884,148.44,148.41,6.7348]
[1749862366068,6.7334,148.45,148.41,6.7348]
[1749862366369,12.20539708,148.44,148.4,48.5755]
[1749862366565,5.47169708,148.43,148.42,0.05064659]
[1749862367177,12.20579708,148.43,148.42,0.05064659]
[1749862368372,5.47169708,148.43,148.42,0.05064659]
[1749862370769,0.04702377,148.44,148.42,0.05064659]
[1749862372274,0.04702377,148.44,148.43,6.7341]
[1749862374983,41.4518,148.49,148.46,6.7325]
[1749862375184,5.45783102,148.48,148.46,6.7325]
[1749862375385,5.45783102,148.47,148.46,6.7325]
[1749862375680,5.45783102,148.48,148.46,6.7325]
[1749862375883,10.6975628,148.5,148.46,6.7826273]
[1749862376079,5.45722112,148.49,148.46,6.7826273]
[1749862376271,5.45722112,148.48,148.46,6.7826273]
[1749862376476,10.6975628,148.5,148.46,6.7826273]
[1749862376671,5.45722112,148.49,148.46,6.7826273]
[1749862376878,5.45722112,148.48,148.46,6.7826273]
[1749862377088,44.95764281,148.52,148.46,0.0501273]
[1749862377289,8.04213831,148.51,148.46,0.0501273]
[1749862377586,5.45642255,148.5,148.46,0.0501273]
[1749862377883,5.45642255,148.49,148.46,0.0501273]
[1749862378083,5.45642255,148.48,148.46,0.0501273]
[1749862378281,47.72138001,148.52,148.48,6.7318]
[1749862378481,5.4645418,148.51,148.49,0.05122433]
[1749862378779,5.4645418,148.5,148.49,0.05122433]
[1749862379586,5.4645418,148.5,148.41,6.2952628]
[1749862379782,3.9664628,148.48,148.41,40.9952628]
[1749862379989,5.4645418,148.47,148.43,6.7338]
[1749862380190,5.4645418,148.46,148.43,6.7338]
[1749862380389,3.9664628,148.48,148.41,37.0288]
[1749862380591,0.0443002,148.46,148.45,6.7332]
[1749862380790,5.46469881,148.46,148.44,0.04688079]
[1749862381292,5.46469881,148.46,148.45,6.7332]
[1749862381687,0.05035236,148.47,148.44,0.04688079]
[1749862382183,0.05035236,148.47,148.46,6.7328]
[1749862384185,34.72,148.52,148.48,6.7316]
[1749862384387,5.47122267,148.51,148.48,6.7316]
[1749862384689,5.47122267,148.5,148.48,6.7316]
[1749862384883,6.7303,148.52,148.48,6.7316]
[1749862385083,5.47086767,148.51,148.48,6.7316]
[1749862385291,5.47086767,148.5,148.48,0.04616735]
[1749862385588,10.23764281,148.53,148.48,0.04616735]
[1749862385589,5.471082,148.49,148.48,0.04616735]
[1749862385784,5.471082,148.5,148.48,0.04616735]
[1749862385997,10.23764281,148.53,148.48,0.04616735]
[1749862386293,5.47149311,148.52,148.48,0.04616735]
[1749862386482,5.47149311,148.51,148.48,0.04616735]
[1749862386688,5.47149311,148.5,148.48,0.04616735]
[1749862386882,6.7304,148.52,148.48,0.04616735]
[1749862387085,5.47122761,148.51,148.48,0.04616735]
[1749862387281,5.47122761,148.5,148.48,0.04616735]
[1749862387483,6.7305,148.51,148.48,6.77786735]
[1749862387895,5.47063694,148.5,148.48,0.04616735]
[1749862388091,10.23764281,148.54,148.48,0.04616735]
[1749862388291,5.4705251,148.53,148.48,0.04616735]
[1749862388492,6.7307,148.51,148.48,6.77766735]
[1749862388685,5.4705251,148.5,148.48,6.77766735]
[1749862388885,10.23764281,148.54,148.48,0.04616735]
[1749862389080,5.45094484,148.53,148.48,0.04616735]
[1749862389284,5.45094484,148.52,148.48,0.04616735]
[1749862389490,5.45094484,148.51,148.49,6.7313]
[1749862389691,5.45071161,148.5,148.48,0.04616735]
[1749862389893,10.23764281,148.54,148.48,0.04616735]
[1749862390194,5.4536682,148.53,148.48,0.04616735]
[1749862390392,5.4536682,148.52,148.48,0.04616735]
[1749862390599,10.23764281,148.54,148.48,0.04616735]
[1749862390600,5.4536682,148.51,148.48,0.04616735]
[1749862390782,5.4536682,148.5,148.48,0.04616735]
[1749862390982,6.27118001,148.53,148.48,0.04616735]
[1749862390983,3.9664628,148.52,148.48,0.04616735]
[1749862391285,6.7311,148.5,148.48,0.04616735]
[1749862391485,5.45436961,148.49,148.48,0.04616735]
[1749862393592,12.18576961,148.49,148.48,0.04616735]
[1749862393892,5.45436961,148.49,148.48,0.04616735]
[1749862395293,5.45436961,148.49,148.39,145.4315]
[1749862395294,5.45436961,148.49,148.42,34.68]
[1749862395596,6.7324,148.47,148.44,6.7334]
[1749862396192,6.77839035,148.47,148.44,6.78340882]
[1749862396497,0.04599035,148.47,148.44,6.78340882]
[1749862396687,5.50576095,148.47,148.44,6.78340882]
[1749862396885,0.04599035,148.47,148.44,6.78340882]
[1749862397393,5.50591989,148.47,148.44,6.78340882]
[1749862398099,0.04599035,148.47,148.44,6.78340882]
[1749862398592,5.50063064,148.47,148.44,0.05000882]
[1749862398895,3.9664628,148.45,148.39,34.68]
[1749862399197,3.9664628,148.43,148.37,4.3467]
[1749862399402,3.9664628,148.41,148.33,387.82]
[1749862399696,3.9664628,148.41,148.34,34.68]
[1749862399905,0.04724478,148.38,148.36,0.04359276]
[1749862400397,6.78394478,148.38,148.36,0.04359276]
[1749862400599,0.04724478,148.38,148.36,0.04359276]
[1749862400788,5.5001622,148.38,148.36,0.04359276]
[1749862400995,3.9664628,148.37,148.36,0.04359276]
[1749862401600,9.41561974,148.37,148.31,34.7]
[1749862401797,3.9664628,148.35,148.31,34.7]
[1749862402099,10.7045628,148.35,148.31,34.7]
[1749862402694,0.05184679,148.34,148.32,0.0505032]
[1749862404407,3.9664628,148.33,148.32,0.0505032]
[1749862406191,3.9664628,148.33,148.25,6.1234628]
[1749862406192,3.9664628,148.33,148.25,2.157]
[1749862406398,3.9664628,148.29,148.22,34.7]
[1749862407007,34.7,148.31,148.22,34.7]
[1749862407194,38.6664628,148.31,148.25,6.7419]
[1749862407400,0.04503694,148.29,148.26,0.04989747]
[1749862412907,0.04503694,148.29,148.26,6.79169747]
[1749862415311,0.04503694,148.29,148.26,0.04989747]
[1749862415609,3.9664628,148.28,148.26,0.04989747]
[1749862415800,6.7414,148.27,148.26,0.04989747]
[1749862415996,3.9664628,148.28,148.2,4.7593]
[1749862416197,3.9664628,148.25,148.2,4.7593]
[1749862417102,0.04779014,148.24,148.21,0.05194126]
[1749862417303,3.9664628,148.23,148.21,0.05194126]
[1749862418910,38.6864628,148.23,148.21,0.05194126]
[1749862419110,38.6864628,148.23,148.16,34.72]
[1749862419408,3.9664628,148.21,148.16,41.466]
[1749862420003,6.78836622,148.2,148.17,0.04463914]
[1749862421405,6.7452,148.19,148.17,0.04463914]
[1749862422109,6.78836622,148.2,148.17,0.04463914]
[1749862423004,3.9664628,148.18,148.03,388.38]
[1749862423203,3.9664628,148.18,148.1,2.1932]
[1749862423412,3.9664628,148.18,148.1,36.9132]
[1749862423613,3.9664628,148.16,148.1,36.9132]
[1749862423810,3.9664628,148.14,148.09,2.2352]
[1749862424010,0.04853671,148.13,148.1,0.04467821]
[1749862424913,3.9664628,148.12,148.1,0.04467821]
[1749862425410,3.9664628,148.12,147.99,34.72]
[1749862425411,34.72,148.11,147.99,34.72]
[1749862425619,3.9664628,148.09,148.0,34.72]
[1749862426116,6.7503,148.08,148.01,6.2319628]
[1749862426503,0.04854496,148.06,148.03,6.80024597]
[1749862428718,0.04854496,148.06,148.03,0.04824597]
[1749862430808,0.04854496,148.06,148.04,6.7518]
[1749862431118,0.04854496,148.06,148.03,0.04824597]
[1749862431414,0.04854496,148.06,148.03,6.80034597]
[1749862432816,0.04854496,148.06,148.04,6.7517]
[1749862433319,0.04854496,148.06,148.03,0.04824597]
[1749862434413,4.01500776,148.06,148.03,0.04824597]
[1749862434617,3.9664628,148.04,148.03,0.04824597]
[1749862435724,10.7182628,148.04,148.03,0.04824597]
[1749862440023,6.7541,147.99,147.98,2.1517]
[1749862440318,6.7541,147.99,147.87,13.5187]
[1749862440319,3.9664628,148.0,147.92,34.76]
[1749862440520,3.9664628,148.0,147.9,34.76]
[1749862440521,3.9664628,147.96,147.9,34.76]
[1749862440927,3.9664628,147.96,147.93,6.7566]
[1749862441226,4.01685096,147.96,147.93,6.80027818]
[1749862441423,4.01685096,147.96,147.94,6.7564]
[1749862441924,394.99626375,148.12,147.93,0.04367818]
[1749862442116,38.7264628,148.06,147.96,3.9664628]
[1749862442317,38.7264628,148.06,147.97,39.2986]
[1749862442519,6.7516,148.05,148.01,6.7529]
[1749862442723,6.7516,148.05,147.97,39.2986]
[1749862443025,0.04851402,148.02,148.01,6.7532]
[1749862444023,34.76,148.06,148.0,4.01175242]
[1749862444228,3.9664628,148.08,148.01,34.76]
[1749862444415,38.7264628,148.09,148.01,34.76]
[1749862444923,0.04471494,148.06,148.04,0.04861802]
[1749862445122,0.04471494,148.06,148.05,6.7514]
[1749862446122,6.63332855,148.11,148.07,6.7502]
[1749862446827,6.63332855,148.08,147.9,20.25]
[1749862447030,0.05190075,148.04,148.01,0.04602501]
[1749862447228,6.80410075,148.04,148.01,0.04602501]
[1749862447621,6.6852293,148.04,148.01,0.04602501]
[1749862448530,6.7526,148.03,148.01,0.04602501]
[1749862449825,13.4372293,148.04,148.01,0.04602501]
[1749862450225,6.7524,148.03,148.01,0.04602501]
[1749862451224,6.6852293,148.04,148.01,0.04602501]
[1749862452735,6.7526,148.03,148.01,0.04602501]
[1749862453134,6.6852293,148.04,148.01,0.04602501]
[1749862453334,6.7527,148.02,148.01,0.04602501]
[1749862454135,6.7525,148.03,148.01,0.04602501]
[1749862454935,6.7527,148.02,148.01,0.04602501]
[1749862455338,6.7524,148.03,148.01,0.04602501]
[1749862460845,6.6852293,148.04,148.01,0.04602501]
[1749862460846,6.80390075,148.04,148.01,0.04602501]
[1749862463651,6.7524,148.03,148.01,0.04602501]
[1749862465049,6.7523,148.03,148.01,0.04602501]
[1749862465241,0.05190075,148.04,148.01,0.04602501]
[1749862465642,6.7527,148.02,148.01,0.04602501]
[1749862466945,12.06811527,148.02,148.01,0.04602501]
[1749862467152,13.38582855,148.03,148.01,0.04602501]
[1749862467344,10.73580308,148.03,148.01,0.04602501]
[1749862467547,5.3241141,148.02,148.01,0.04602501]
[1749862467849,12.0768141,148.02,148.01,0.04602501]
[1749862470451,6.7541,147.99,147.97,2.3499]
[1749862470649,3.98330308,148.0,147.94,34.84]
[1749862470861,3.98330308,147.98,147.92,34.84]
[1749862471049,5.33273698,147.97,147.94,6.7563]
[1749862471251,3.98330308,147.98,147.94,6.7563]
[1749862471450,5.36740086,147.97,147.95,0.04985068]
[1749862471755,0.04329319,147.97,147.95,0.04985068]
[1749862472059,6.79859319,147.97,147.95,0.04985068]
[1749862474761,6.7554,147.96,147.95,0.04985068]
[1749862476153,3.98330308,147.96,147.9,6.8812]
[1749862476659,6.7553,147.97,147.9,6.8812]
[1749862476960,3.98330308,147.99,147.91,3.98330308]
[1749862477158,6.7545,147.98,147.94,0.04342883]
[1749862477363,0.05100248,147.97,147.94,0.04342883]
[1749862478059,34.84,148.03,147.94,0.04342883]
[1749862478362,34.84,148.03,147.93,38.82330308]
[1749862478363,3.98330308,148.02,147.93,38.82330308]
[1749862478562,6.7538,148.0,147.96,6.755]
[1749862478763,6.7538,148.0,147.93,38.82330308]
[1749862479260,0.05119519,147.98,147.95,0.04369962]
[1749862480360,0.05119519,147.98,147.97,6.7549]
[1749862480763,3.98330308,148.02,147.96,4.6099]
[1749862480961,34.84,148.03,147.97,34.84]
[1749862481259,3.98330308,148.04,147.97,34.84]
[1749862481464,6.7524,148.03,148.0,6.7535]
[1749862481765,6.79958201,148.03,148.0,6.79653449]
[1749862483459,0.04718201,148.03,148.02,6.7527]
[1749862484165,0.04718201,148.03,148.01,6.753]
[1749862484552,0.04718201,148.03,148.0,0.04303449]
[1749862484762,3.98167813,148.01,148.0,0.04303449]
[1749862485168,10.73487813,148.01,148.0,0.04303449]
[1749862486361,6.7544,147.99,147.96,2.2961]
[1749862487373,6.79821408,147.99,147.96,9.10216065]
[1749862487867,0.04381408,147.99,147.96,9.10216065]
[1749862489271,6.79801408,147.99,147.96,9.10216065]
[1749862489465,4.02549221,147.99,147.96,2.34676065]
[1749862489662,4.02549221,147.99,147.96,0.05066065]
[1749862490371,10.77969221,147.99,147.96,0.05066065]
[1749862490864,10.73667813,147.97,147.96,0.05066065]
[1749862491063,3.98167813,147.97,147.92,37.0127]
[1749862491367,6.7563,147.95,147.92,37.0127]
[1749862492166,6.80744191,147.95,147.92,37.05810028]
[1749862492364,6.7565,147.94,147.92,37.05810028]
[1749862493070,6.80724191,147.95,147.92,43.81540028]
[1749862493568,0.05114191,147.95,147.92,37.05810028]
[1749862493771,4.03730435,147.95,147.92,0.04540028]
[1749862494571,6.7568,147.93,147.92,0.04540028]
[1749862495370,10.74296244,147.93,147.92,0.04540028]
[1749862496173,6.7568,147.93,147.92,0.04540028]
[1749862497170,10.74296244,147.93,147.92,0.04540028]
[1749862497362,6.7581,147.91,147.89,34.84]
[1749862497765,3.98616244,147.94,147.89,34.84]
[1749862497962,6.7574,147.92,147.89,34.84]
[1749862498169,3.98616244,147.94,147.89,34.84]
[1749862498474,0.04631927,147.93,147.9,0.05008614]
[1749862499066,6.80321927,147.93,147.9,0.05008614]
[1749862499362,0.04631927,147.93,147.9,0.05008614]
[1749862499564,6.7577,147.91,147.9,0.05008614]
[1749862500359,7.97232488,147.92,147.83,4.396]
[1749862500565,3.98616244,147.88,147.83,2.2047]
[1749862500967,6.7602,147.86,147.83,2.2047]
[1749862501274,4.02959019,147.86,147.83,0.04817023]
[1749862501475,6.80352775,147.86,147.83,0.04817023]
[1749862502471,0.04342775,147.86,147.83,0.04817023]
[1749862502668,3.99051819,147.93,147.83,4.03868842]
[1749862502876,40.97626375,147.95,147.82,34.84]
[1749862502877,3.99051819,147.89,147.82,34.84]
[1749862503067,3.99131712,147.87,147.82,41.6015]
[1749862503267,6.7593,147.88,147.82,34.84]
[1749862503466,38.79131712,147.91,147.83,3.99131712]
[1749862503670,0.04621668,147.88,147.86,6.80568805]
[1749862503875,0.04621668,147.88,147.86,0.04598805]
[1749862504171,4.0375338,147.88,147.86,0.04598805]
[1749862504683,6.7595,147.87,147.86,0.04598805]
[1749862507371,6.7595,147.87,147.8,8.39151712]
[1749862507372,6.7618,147.82,147.79,2.3181]
[1749862507569,10.75311712,147.82,147.79,6.763]
[1749862508176,6.7615,147.83,147.8,6.7627]
[1749862508368,6.81227275,147.83,147.8,6.80921864]
[1749862508568,6.81227275,147.83,147.8,0.04651864]
[1749862508764,6.762,147.82,147.8,0.04651864]
[1749862509183,6.81227275,147.83,147.8,0.04651864]
[1749862510072,6.762,147.82,147.8,0.04651864]
[1749862510271,10.75331712,147.82,147.8,0.04651864]
[1749862511074,6.7623,147.81,147.8,0.04651864]
[1749862511578,0.05077275,147.83,147.8,0.04651864]
[1749862511782,0.05077275,147.83,147.81,6.762]
[1749862512080,0.05077275,147.83,147.8,0.04651864]
[1749862512978,0.05077275,147.83,147.82,6.7618]
[1749862513972,0.05077275,147.83,147.81,41.5621]
[1749862514169,0.05077275,147.83,147.81,34.8]
[1749862514369,0.05077275,147.83,147.8,2.23381864]
[1749862514574,6.81247275,147.83,147.8,2.23381864]
[1749862514776,0.05077275,147.83,147.8,2.23381864]
[1749862515682,0.05077275,147.83,147.81,6.762]
[1749862519286,0.05077275,147.83,147.8,8.99641864]
[1749862519686,0.05077275,147.83,147.8,2.23381864]
[1749862519984,6.7618,147.82,147.8,2.23381864]
[1749862520389,6.81247275,147.83,147.8,6.80921864]
[1749862520885,0.05077275,147.83,147.8,0.04651864]
[1749862522584,6.7623,147.81,147.8,0.04651864]
[1749862526590,6.7619,147.82,147.8,0.04651864]
[1749862527679,6.81227275,147.83,147.8,6.80921864]
[1749862527884,0.05077275,147.83,147.8,0.04651864]
[1749862528793,6.7623,147.81,147.8,0.04651864]
[1749862529688,6.65680826,147.82,147.72,34.82]
[1749862529884,26.35007201,147.9,147.72,34.82]
[1749862529885,6.65680826,147.8,147.75,6.765]
[1749862530193,6.7635,147.79,147.75,6.765]
[1749862530386,34.82,147.81,147.74,6.65680826]
[1749862530588,6.65680826,147.83,147.74,6.65680826]
[1749862530589,6.65680826,147.83,147.75,2.3034]
[1749862530791,0.04312215,147.79,147.77,6.7638]
[1749862531693,0.04312215,147.79,147.76,6.81525644]
[1749862532381,0.04312215,147.79,147.76,0.05085644]
[1749862532783,6.7639,147.78,147.76,0.05085644]
[1749862533191,0.04312215,147.79,147.76,0.05085644]
[1749862533391,4.03902106,147.79,147.76,0.05085644]
[1749862533594,6.7636,147.78,147.76,0.05085644]
[1749862533994,4.03902106,147.79,147.76,0.05085644]
[1749862534195,6.7636,147.78,147.76,0.05085644]
[1749862534398,4.03902106,147.79,147.76,0.05085644]
[1749862534898,6.7636,147.78,147.76,0.05085644]
[1749862535396,6.7641,147.77,147.76,0.05085644]
[1749862537593,6.7655,147.74,147.72,34.82]
[1749862538394,3.99589891,147.77,147.72,34.82]
[1749862538600,6.7652,147.75,147.73,0.04516402]
[1749862538791,0.04315272,147.76,147.73,0.04516402]
[1749862539299,3.99589891,147.75,147.68,2.3248]
[1749862539499,3.99589891,147.73,147.68,2.3248]
[1749862539798,6.7678,147.7,147.66,41.5888]
[1749862540191,3.99589891,147.73,147.66,41.5888]
[1749862540390,0.04786598,147.71,147.69,0.04781606]
[1749862541400,0.04786598,147.71,147.69,2.21871606]
[1749862541902,0.04786598,147.71,147.7,6.7673]
[1749862542701,0.04786598,147.71,147.69,2.21871606]
[1749862542899,0.04786598,147.71,147.69,0.04781606]
[1749862543198,3.99589891,147.7,147.62,3.92752019]
[1749862543402,3.99589891,147.7,147.62,2.74915737]
[1749862544207,0.04967875,147.67,147.63,3.99589891]
[1749862544505,6.7672,147.71,147.65,3.99589891]
[1749862544704,6.7672,147.71,147.66,34.82]
[1749862545202,3.99891189,147.73,147.66,34.82]
[1749862545407,3.99891189,147.73,147.67,2.2165]
[1749862545601,6.7673,147.7,147.69,0.04331706]
[1749862545907,38.82081145,147.7,147.62,2.74915737]
[1749862546104,6.7705,147.63,147.62,2.74915737]
[1749862546706,6.7704,147.64,147.62,2.74915737]
[1749862546910,0.05018352,147.64,147.62,2.74915737]
[1749862547108,6.889,147.72,147.62,6.74996882]
[1749862547410,6.889,147.72,147.63,6.66626625]
[1749862547707,6.889,147.72,147.64,34.84]
[1749862547909,6.889,147.72,147.65,6.7695]
[1749862548107,0.05138548,147.7,147.67,0.04964736]
[1749862548509,6.81878548,147.7,147.67,0.04964736]
[1749862548698,0.05138548,147.7,147.67,0.04964736]
[1749862551113,0.05138548,147.7,147.67,6.81814736]
[1749862554504,6.81898548,147.7,147.67,0.04964736]
[1749862555810,6.81898548,147.7,147.67,6.81824736]
[1749862557114,6.81898548,147.7,147.67,0.04964736]
[1749862558308,0.05138548,147.7,147.67,0.04964736]
[1749862559010,6.7681,147.69,147.67,0.04964736]
[1749862559219,0.05138548,147.7,147.67,0.04964736]
[1749862559614,6.7677,147.69,147.67,0.04964736]
[1749862560319,6.7682,147.68,147.67,0.04964736]
[1749862563014,13.43736855,147.69,147.67,0.04964736]
[1749862563214,0.05138548,147.7,147.67,0.04964736]
[1749862564022,6.81888548,147.7,147.67,6.81824736]
[1749862564518,0.05138548,147.7,147.67,6.81824736]
[1749862564730,6.81878548,147.7,147.67,0.04964736]
[1749862564931,0.05138548,147.7,147.67,0.04964736]
[1749862566030,6.66946855,147.69,147.67,0.04964736]
[1749862566625,6.7682,147.68,147.67,0.04964736]
[1749862567529,6.7679,147.69,147.67,0.04964736]
[1749862568628,6.81888548,147.7,147.67,0.04964736]
[1749862569136,0.05138548,147.7,147.68,6.768]
[1749862569931,6.81868548,147.7,147.67,6.81814736]
[1749862570133,4.05099499,147.7,147.67,0.04964736]
[1749862570329,6.7679,147.69,147.67,0.04964736]
[1749862571434,6.81878548,147.7,147.67,6.81834736]
[1749862572636,0.05138548,147.7,147.68,6.768]
[1749862573132,0.05138548,147.7,147.68,34.84]
[1749862574231,0.05138548,147.7,147.69,6.7677]
[1749862575735,3.99960951,147.76,147.72,6.766]
[1749862576341,6.7651,147.75,147.72,41.586]
[1749862576530,3.99960951,147.76,147.72,34.82]
[1749862576732,0.04772215,147.75,147.73,0.04824463]
[1749862578533,0.04772215,147.75,147.73,6.81384463]
[1749862579431,0.04772215,147.75,147.73,6.81394463]
[1749862579836,0.04772215,147.75,147.73,0.04824463]
[1749862580041,0.04772215,147.75,147.74,6.7655]
[1749862580238,0.04772215,147.75,147.73,0.04824463]
[1749862580836,0.04772215,147.75,147.74,6.7655]
[1749862581037,0.04772215,147.75,147.73,0.04824463]
[1749862581437,3.99960951,147.74,147.73,0.04824463]
[1749862581643,10.76510951,147.74,147.73,0.04824463]
[1749862583945,6.7655,147.74,147.73,0.04824463]
[1749862589942,6.7669,147.71,147.69,34.82]
[1749862590443,3.99960951,147.72,147.69,34.82]
[1749862590937,4.04716069,147.72,147.69,34.86994154]
[1749862591138,6.7671,147.71,147.69,34.86994154]
[1749862591541,4.04716069,147.72,147.69,34.86994154]
[1749862592645,4.04716069,147.72,147.69,0.04994154]
[1749862592646,6.7673,147.7,147.69,0.04994154]
[1749862595445,0.04755118,147.72,147.69,0.04994154]
[1749862595646,0.04755118,147.72,147.7,34.82]
[1749862596649,0.04755118,147.72,147.71,6.7668]
[1749862596844,3.99960951,147.78,147.7,38.81960951]
[1749862597044,3.99960951,147.78,147.71,4.6724]
[1749862597551,6.7648,147.76,147.73,6.7655]
[1749862598051,6.81651701,147.76,147.73,6.81399528]
[1749862598752,6.7655,147.74,147.73,0.04849528]
[1749862601551,6.7652,147.75,147.73,0.04849528]
[1749862603249,0.05171701,147.76,147.73,0.04849528]
[1749862604656,6.81661701,147.76,147.73,6.81409528]
[1749862606354,0.05171701,147.76,147.74,6.7654]
[1749862606557,0.05171701,147.76,147.74,41.5854]
[1749862607250,0.05171701,147.76,147.74,34.82]
[1749862607654,6.81631701,147.76,147.74,34.82]